Workbook

Sheet Sheet1
B2: RENT ROLL
B3: Address | C3: Unit | D3: Tenant | E3: Lease Start | F3: Lease End | G3: Monthly Rent | H3: Annual Rent
B4: 1700 4th St S - Lot 1 | D4: McMullen Fish House | E4: 2023-11-01 | F4: 2028-10-31 | G4: 5150 | H4: =G4*12 -> 61800
B5: 1700 4th St S - Lot 2 | C5: A | D5: VACANT
B6: 1700 4th St S - Lot 2 | C6: B | D6: VACANT
B7: 1700 4th St S - Lot 2 | C7: C | D7: The Service Pros | E7: 2025-06-01 | F7: 2026-05-30 | G7: 2000 | H7: =G7*12 -> 24000
B8: 1624 4th St S | C8: A | D8: Michelle P. | E8: 2025-07-01 | F8: 2026-06-30 | G8: 1250 | H8: =G8*12 -> 15000
B9: 1624 4th St S | C9: B | D9: VACANT
B10: 1624 4th St S | C10: C | D10: Joseph P. | E10: 2024-06-01 | F10: MtoM | G10: 900 | H10: =G10*12 -> 10800
B11: 1624 4th St S | C11: D | D11: Jeffrey Z. | E11: 2024-06-01 | F11: MtoM | G11: 650 | H11: =G11*12 -> 7800
B12: 1624 4th St S | C12: E | D12: Adam W. | E12: 2025-06-01 | F12: 2026-05-30 | G12: 850 | H12: =G12*12 -> 10200
B13: 1624 4th St S | C13: Apartment | D13: Kevin S. | E13: 2024-06-01 | F13: MtoM | G13: 2000 | H13: =G13*12 -> 24000
B15: INCOME
B16: 1700 4th St S | C16: =SUM(H4:H7) -> 85800
B17: 1624 4th St S | C17: =SUM(H8:H13) -> 67800
B18: Total Income | C18: =SUM(C16:C17) -> 153600
B20: EXPENSES
B21: 1700 4th St S | C21: 0 | D21: NNN Lease - All expenses reimbursed by Tenant
B22: 1624 4th St S | C22: -10000 | D22: Includes Property Tax & Insurance
B23: Total Expense | C23: =SUM(C21:C22) -> -10000
B25: NOI | C25: =SUM(C18,C23) -> 143600
B29: PRO FORMA
B30: Address | C30: Unit | D30: Monthly Rent | E30: Annual Rent
B31: 1700 4th St S - Lot 1 | D31: 5150 | E31: =D31*12 -> 61800
B32: 1700 4th St S - Lot 2 | C32: A | D32: 2000 | E32: 24000
B33: 1700 4th St S - Lot 2 | C33: B | D33: 3000 | E33: 36000
B34: 1700 4th St S - Lot 2 | C34: C | D34: 2000 | E34: 24000
B35: 1624 4th St S | C35: A | D35: 1250 | E35: 15000
B36: 1624 4th St S | C36: B | D36: 1000 | E36: 12000
B37: 1624 4th St S | C37: C | D37: 900 | E37: 10800
B38: 1624 4th St S | C38: D | D38: 650 | E38: 7800
B39: 1624 4th St S | C39: E | D39: 850 | E39: 10200
B40: 1624 4th St S | C40: Apartment | D40: 2000 | E40: 24000
B42: INCOME
B43: 1700 4th St S | C43: =SUM(E31:E34) -> 145800
B44: 1624 4th St S | C44: =SUM(E35:E40) -> 79800
B45: Total Income | C45: =SUM(C43:C44) -> 225600
B47: EXPENSES
B48: 1700 4th St S | C48: 0 | D48: NNN Lease - All expenses reimbursed by Tenant
B49: 1624 4th St S | C49: -10000 | D49: Includes Property Tax, Building Insurance, & Maintenance
B50: Total Expense | C50: =SUM(C48:C49) -> -10000
B52: NOI | C52: =SUM(C45,C50) -> 215600
B54: Property Value | C54: 0.0775 | D54: Cap Rate
C55: =C52/C54 -> 2781935.484
